[Event "44th Chess Olympiad Women 2022"]
[Site "Chennai"]
[Date "2022.07.30"]
[Round "2.8"]
[White "Kakulidis, Ellen"]
[Black "Wagner, Dinara"]
[Result "0-1"]
[ECO "D11"]
[WhiteElo "2057"]
[BlackElo "2341"]
[Annotator "TA"]
[PlyCount "68"]
[EventDate "2022.07.29"]
[EventType "team-tourn"]
[EventCountry "IND"]
[SourceTitle "playchess.com"]
[Source "ChessBase"]
[SourceQuality "1"]
[WhiteTeam "Denmark"]
[BlackTeam "Germany"]
[WhiteTeamCountry "DEN"]
[BlackTeamCountry "GER"]
[TimeControl "40/5400+30:1800+30"]

{[%evp 13,67,0,10,-5,-13,-7,0,-15,-2,-5,-9,-8,-4,-14,0,0,0,0,0,0,0,-17,-14,0,0,-33,-34,-58,-52,-82,-30,-109,-110,-118,-108,-134,-97,-177,-170,-228,-236,-262,-266,-852,-508,-514,-506,-831,-600,-1120,-710,-29987,-29988,-29998,-29999,-29999]} 1. d4 {[%emt 0:00:02]} Nf6 {[%emt 0:00:10]} 2. Nf3 {[%emt 0:00:05]} d5 {[%emt 0:00:06]} 3. g3 {[%emt 0:00:07]} Bf5 {[%emt 0:00:16]} 4. c4 {[%emt 0:00:07]} e6 {[%emt 0:00:12]} 5. Bg2 {[%emt 0:01:38]} h6 {[%emt 0:04:34]} 6. Nc3 {[%emt 0:02:59]} c6 {[%emt 0:00:15]} 7. O-O {[%emt 0:01:32]} Be7 {[%emt 0:00:29]} 8. h3 {[%emt 0:17:17] D11: Slav Defence: 3 Nf3 sidelines and 3...Nf6 4 e3 Bg4.} O-O {[%emt 0:03:25]} 9. Nd2 {[%emt 0:07:29]} Nbd7 {[%emt 0:02:10]} 10. e4 {[%emt 0:01:36] The position is equal.} dxe4 {[%emt 0:00:12]} 11. Ndxe4 {[%emt 0:00:44]} Nxe4 {[%emt 0:00:51]} 12. Nxe4 {[%emt 0:01:13]} Nf6 {[%emt 0:01:00]} 13. Nc3 {[%emt 0:04:05]} Rc8 {[%emt 0:04:23] [#]} 14. Qb3 $146 {[%emt 0:06:12]} ({Predecessor:} 14. Be3 b6 15. Qe2 c5 16. Rfd1 cxd4 17. Bxd4 Qc7 18. b3 a6 19. Rac1 Nd7 20. Nd5 exd5 21. Qxe7 dxc4 22. Rxc4 {1-0 (67) Samadov,R (2332)-Migot,T (2353) Chess.com INT 2021}) 14... Qb6 {[%emt 0:39:24]} 15. Be3 {[%emt 0:13:37]} Qxb3 {[%emt 0:03:38]} 16. axb3 {[%emt 0:00:09]} a6 {[%emt 0:00:09]} 17. Rfc1 {[%emt 0:12:18]} Rfd8 {[%emt 0:03:09]} 18. Na4 {[%emt 0:00:00]} Bd6 {[%emt 0:04:17]} 19. f4 {[%emt 0:19:04]} h5 {[%emt 0:05:00]} 20. Nc3 {[%emt 0:02:26]} Bb8 {[%emt 0:02:55]} 21. b4 {[%emt 0:01:04]} Ba7 {[%emt 0:10:20]} (21... h4 $17 22. g4 {[#]} Bxg4 $1 23. hxg4 Nxg4) 22. b5 {[%emt 0:01:09]} (22. Rd1 $11 {keeps the balance.}) 22... Bxd4 $17 {[%emt 0:00:58]} 23. Bxd4 {[%emt 0:00:08]} Rxd4 {[%emt 0:00:02]} 24. bxa6 {[%emt 0:00:10]} bxa6 {[%emt 0:00:03]} 25. b3 {[%emt 0:03:12]} (25. Rxa6 $17 Rxc4 26. Ra4 Rxa4 27. Nxa4) 25... Rd3 {[%emt 0:00:48]} 26. Rxa6 {[%emt 0:01:42]} (26. Kh2 $142) 26... Rxg3 $19 {[%emt 0:00:49]} 27. Kh2 {[%emt 0:00:34]} h4 {[%emt 0:02:01]} 28. Bxc6 $2 {[%emt 0:00:06]} (28. b4) 28... Rxh3+ {[%emt 0:00:28]} 29. Kg1 {[%emt 0:00:21]} Rg3+ {[%emt 0:01:19]} 30. Kh1 {[%emt 0:02:13]} (30. Kf1 $142) 30... Kh7 {[%emt 0:02:24][%cal Oc8c6] White must now prevent ...Rxc6!} 31. b4 {[%emt 0:00:55]} Bg4 {[%emt 0:05:38][%cal Oc8c6] ( -> ...Rxc6!)} 32. b5 {[%emt 0:00:48] [#]} Rxc6 $1 {[%emt 0:00:33][%mdl 512] Black mates.} 33. bxc6 {[%emt 0:00:41]} (33. Rf1 Rxc4) 33... Bf3+ {[%emt 0:00:04]} 34. Kh2 {[%emt 0:00:05]} Ng4# {[%emt 0:00:04] Weighted Error Value: White=0.90/Black=0.40} 0-1

[Event "44th Chess Olympiad Women 2022"]
[Site "Chennai"]
[Date "2022.07.30"]
[Round "2.9"]
[White "Mkrtchyan, Mariam"]
[Black "Stanford, Sheila Barth"]
[Result "1-0"]
[ECO "E08"]
[WhiteElo "2285"]
[BlackElo "2097"]
[Annotator "TA"]
[PlyCount "79"]
[EventDate "2022.07.29"]
[EventType "team-tourn"]
[EventCountry "IND"]
[SourceTitle "playchess.com"]
[Source "ChessBase"]
[SourceQuality "1"]
[WhiteTeam "Armenia"]
[BlackTeam "Norway"]
[WhiteTeamCountry "ARM"]
[BlackTeamCountry "NOR"]
[TimeControl "40/5400+30:1800+30"]

{[%evp 21,79,0,0,8,0,0,0,0,0,-10,0,0,0,0,0,-14,24,15,15,19,12,9,63,57,75,77,81,59,67,43,73,19,89,28,35,31,23,0,0,0,146,158,156,127,130,144,133,134,133,129,747,746,714,722,6040,6016,29990,29988,29988,29988]} 1. d4 {[%emt 0:00:04]} Nf6 {[%emt 0:00:06]} 2. c4 {[%emt 0:00:10]} e6 {[%emt 0:00:20]} 3. Nf3 {[%emt 0:00:48]} d5 {[%emt 0:00:52]} 4. g3 {[%emt 0:00:09]} Bb4+ {[%emt 0:00:34]} 5. Bd2 {[%emt 0:00:25]} Be7 {[%emt 0:00:23]} 6. Bg2 {[%emt 0:00:14]} O-O {[%emt 0:00:39]} 7. Qc2 {[%emt 0:02:02]} Nbd7 {[%emt 0:02:02]} 8. O-O {[%emt 0:00:47]} c6 {[%emt 0:01:07]} 9. Rd1 {[%emt 0:05:36]} b6 {[%emt 0:02:39]} 10. Bf4 {[%emt 0:02:01]} Bb7 {[%emt 0:07:20]} 11. Nc3 {[%emt 0:02:41]} dxc4 {[%emt 0:03:32]} 12. Nd2 {[%emt 0:06:29] E08: Closed Catalan: Main Line: 7 Qc2.} Nd5 {[%emt 0:02:03]} 13. Nxc4 {[%emt 0:00:16]} Nxf4 {[%emt 0:00:10]} 14. gxf4 {[%emt 0:00:03] The position is equal.} Qc7 {[%emt 0:00:25]} 15. f5 {[%emt 0:07:31] [#]} Qf4 $146 {[%emt 0:27:11]} ({Predecessor:} 15... exf5 16. Qxf5 g6 17. Qf3 Rad8 18. Rac1 Bf6 19. Qg3 Qxg3 20. hxg3 Ba6 21. b3 c5 {0-1 (61) Gretarsson,H (2516)-Klein,D (2445) Wijk aan Zee 2013}) 16. fxe6 {[%emt 0:10:49]} fxe6 {[%emt 0:00:08]} 17. e3 {[%emt 0:00:28]} Qh4 {[%emt 0:03:43]} 18. f4 {[%emt 0:05:18]} Nf6 {[%emt 0:04:08]} 19. Ne5 {[%emt 0:06:45]} Ng4 {[%emt 0:08:01]} 20. Nxg4 {[%emt 0:08:25] Active counter play!} Qxg4 {[%emt 0:00:04]} 21. Kh1 {[%emt 0:00:06]} Rac8 {[%emt 0:19:53]} (21... g5 $11) 22. Rg1 {[%emt 0:00:17][%cal Og2d5]} Rf7 {[%emt 0:06:24]} 23. Qb3 {[%emt 0:15:25]} Qf5 {[%emt 0:03:30]} 24. Be4 {[%emt 0:04:49]} Qf6 {[%emt 0:01:15]} 25. Bf3 {[%emt 0:00:54]} Rc7 {[%emt 0:00:40]} 26. Rg3 {[%emt 0:04:24]} ({White should play} 26. Ne4 $16 Qf5 27. Ng5 Bxg5 28. Rxg5) 26... Kh8 {[%emt 0:01:02]} (26... c5 $11 {keeps the balance.}) 27. Rag1 {[%emt 0:01:45]} (27. Ne4 $16 Qf5 28. Ng5) 27... c5 $11 {[%emt 0:02:28]} 28. Bxb7 {[%emt 0:08:45]} Rxb7 {[%emt 0:00:06]} 29. dxc5 {[%emt 0:01:58]} Bxc5 {[%emt 0:00:28]} 30. Ne4 {[%emt 0:00:07]} Qe7 {[%emt 0:00:37]} (30... Qf5 $1 $11 {remains equal.} 31. Ng5 Rf6) 31. Ng5 $16 {[%emt 0:02:02]} Rf6 {[%emt 0:02:39]} 32. Rh3 {[%emt 0:00:05]} h6 {[%emt 0:00:11]} 33. Qd3 {[%emt 0:00:37][%csl Gg5][%cal Rd3h7] [#]} Rf5 {[%emt 0:01:14]} 34. Qe4 {[%emt 0:00:11]} Rb8 {[%emt 0:01:00]} 35. Nxe6 $40 {[%emt 0:00:52][%cal Bg5e6,Be6g7,Bg7h5][%mdl 160] Black is in trouble.} Rf7 {[%emt 0:00:03][%mdl 8192] This move loses the game for Black.} (35... Qb7 $16 36. Qg2 Qxg2+ 37. Rxg2 Rf6 38. Nxc5 (38. Nxg7 Rg8 $16) 38... bxc5) 36. Qe5 $18 {[%emt 0:02:10][%csl LRb8,LRh6]} Qb7+ {[%emt 0:00:50]} 37. Rg2 {[%emt 0:01:32]} Rf6 {[%emt 0:00:04]} 38. Nxg7 {[%emt 0:00:45] [#] White threatens Ne8 and mate.} Rg6 {[%emt 0:00:29]} 39. Nh5+ {[%emt 0:01:24]} Kg8 {[%emt 0:00:19]} 40. Qe6+ {[%emt 0:00:43] Weighted Error Value: White=0.11 (very precise) /Black=0.55} 1-0

[Event "44th Chess Olympiad Women 2022"]
[Site "Chennai"]
[Date "2022.07.30"]
[Round "2.9"]
[White "Machlik, Edit"]
[Black "Mkrtchian, Lilit"]
[Result "0-1"]
[ECO "D36"]
[WhiteElo "2084"]
[BlackElo "2362"]
[Annotator "TA"]
[PlyCount "52"]
[EventDate "2022.07.29"]
[EventType "team-tourn"]
[EventCountry "IND"]
[SourceTitle "playchess.com"]
[Source "ChessBase"]
[SourceQuality "1"]
[WhiteTeam "Norway"]
[BlackTeam "Armenia"]
[WhiteTeamCountry "NOR"]
[BlackTeamCountry "ARM"]
[TimeControl "40/5400+30:1800+30"]

{[%evp 24,52,0,3,33,0,0,0,14,14,18,18,24,21,45,40,42,0,10,-10,0,-56,8,14,10,8,0,7,0,-729,-710]} 1. d4 {[%emt 0:00:05]} Nf6 {[%emt 0:00:23]} 2. c4 {[%emt 0:00:07]} e6 {[%emt 0:00:12]} 3. Nc3 {[%emt 0:00:05]} d5 {[%emt 0:00:32]} 4. cxd5 {[%emt 0:00:08]} exd5 {[%emt 0:00:06]} 5. Bg5 {[%emt 0:00:10]} c6 {[%emt 0:00:26]} 6. e3 {[%emt 0:00:54]} h6 {[%emt 0:00:25]} 7. Bh4 {[%emt 0:01:09]} Be7 {[%emt 0:00:11]} 8. Qc2 {[%emt 0:01:35]} O-O {[%emt 0:00:16]} 9. Bd3 {[%emt 0:01:28]} Re8 {[%emt 0:00:55]} 10. h3 {[%emt 0:01:17]} Ne4 {[%emt 0:11:50]} 11. Bxe7 {[%emt 0:02:49]} Qxe7 {[%emt 0:00:09]} 12. Nf3 {[%emt 0:02:58]} Nd7 {[%emt 0:08:00][%cal Bb8d7,Bd7f8,Bf8g6,Bg6h4][%mdl 32]} 13. O-O {[%emt 0:10:14]} Nf8 {[%emt 0:12:00] D36: Queen's Gambit Declined: Exchange Variation: Main line (5 Bg5 c6 6 Qc2).} 14. Rab1 {[%emt 0:13:47]} Ng6 {[%emt 0:05:58] [#]} 15. b4 $146 {[%emt 0:21:35]} ({Predecessor:} 15. Na4 Bf5 16. b4 Rac8 17. Rfc1 Qf6 18. Nc5 b6 19. Na4 Bxh3 20. Rb2 Bg4 21. Nh2 {0-1 (42) Bouttier,P-Bergraser,V France 1954}) 15... Qf6 {[%emt 0:13:47][%cal Oc8h3] The position is equal.} 16. Bxe4 {[%emt 0:14:29]} dxe4 {[%emt 0:00:07]} 17. Nd2 {[%emt 0:00:06]} (17. Nxe4 $2 Rxe4 $1 {[%mdl 512]} 18. Nd2 (18. Qxe4 $2 Bf5 $19) 18... Re8 $19) 17... Nh4 {[%emt 0:00:40][%cal Oc8h3] Strongly threatening ...Bxh3!} ({Resist} 17... Bf5 18. Ncxe4 (18. Ndxe4 Qe6 $14) 18... Qe6 19. f3 $16) 18. Ne2 {[%emt 0:03:37]} Bd7 {[%emt 0:22:21]} 19. Ng3 {[%emt 0:03:32]} Qg6 {[%emt 0:00:27]} 20. Qc5 {[%emt 0:01:57]} ({Wrong is} 20. Ndxe4 $2 Bf5 21. f3 Qxg3 22. Nxg3 Bxc2 $19) 20... Be6 {[%emt 0:05:21][%cal Bd7e6,Be6d5,Bd5f7][%mdl 32]} 21. a4 {[%emt 0:04:14]} ({Avoid the trap} 21. Ndxe4 $2 Bd5 22. Nd2 {[#]} Rxe3 $1 $19) 21... Bd5 {[%emt 0:00:19] ...f5 is the strong threat.} (21... f5 {keeps more tension.} 22. b5 f4 23. Qh5 fxe3 24. Qxg6 exf2+ 25. Rxf2 Nxg6 26. Ndxe4 cxb5 27. axb5 Rad8) 22. Rfc1 {[%emt 0:04:49]} ({Better is} 22. b5 $11) 22... b6 {[%emt 0:05:04]} ({Black should try} 22... f5 $1 $15 23. Qc2 f4 24. exf4 e3 25. Qxg6 Nxg6 26. fxe3 Rxe3) 23. Qc2 $11 {[%emt 0:00:45]} Rac8 {[%emt 0:04:55]} 24. Qd1 {[%emt 0:02:22]} f5 {[%emt 0:03:37][%cal Of5f4] Against Qg4. aiming for ...f4!} 25. Qh5 {[%emt 0:02:37]} Qf6 {[%emt 0:02:19]} 26. Ne2 $2 {[%emt 0:00:38][%mdl 8192]} (26. Nc4 $11) 26... Bf7 {[%emt 0:00:24] Weighted Error Value: White=0.59/Black=0.14 (very precise)} 0-1

[Event "44th Chess Olympiad Women 2022"]
[Site "Chennai"]
[Date "2022.07.30"]
[Round "2.9"]
[White "Rodsmoen, Maud"]
[Black "Gaboyan, Susanna"]
[Result "0-1"]
[ECO "B33"]
[WhiteElo "1975"]
[BlackElo "2270"]
[Annotator "TA"]
[PlyCount "78"]
[EventDate "2022.07.29"]
[EventType "team-tourn"]
[EventCountry "IND"]
[SourceTitle "playchess.com"]
[Source "ChessBase"]
[SourceQuality "1"]
[WhiteTeam "Norway"]
[BlackTeam "Armenia"]
[WhiteTeamCountry "NOR"]
[BlackTeamCountry "ARM"]
[TimeControl "40/5400+30:1800+30"]

{[%evp 23,78,8,14,0,8,0,0,0,0,0,0,0,33,37,30,18,32,39,29,5,19,0,0,0,0,0,6,0,0,0,0,0,0,0,7,0,0,-218,-209,-270,-270,-278,-277,-281,-282,-512,-491,-1156,-1145,-4886,-4886,-12841,-12841,-12841,-12842,-29988,-12843]} 1. e4 {[%emt 0:00:03]} c5 {[%emt 0:00:11]} 2. Nf3 {[%emt 0:00:09][%cal Bg1f3,Bf3d4,Bd4b5,Bb5a3,Ba3c2][%mdl 32]} Nc6 {[%emt 0:00:06]} 3. d4 {[%emt 0:00:16]} cxd4 {[%emt 0:00:06]} 4. Nxd4 {[%emt 0:00:05]} Nf6 {[%emt 0:00:07]} 5. Nc3 {[%emt 0:00:19]} e5 {[%emt 0:00:06]} 6. Ndb5 {[%emt 0:00:10]} d6 {[%emt 0:00:07]} 7. Bg5 {[%emt 0:00:22]} a6 {[%emt 0:00:10]} 8. Na3 {[%emt 0:00:04]} b5 {[%emt 0:00:06]} 9. Nd5 {[%emt 0:00:20]} Be7 {[%emt 0:00:09]} 10. Bxf6 {[%emt 0:00:08]} Bxf6 {[%emt 0:00:07]} 11. c4 {[%emt 0:01:20]} b4 {[%emt 0:00:08]} 12. Nc2 {[%emt 0:00:04]} a5 {[%emt 0:00:15] 12...0-0 is the fancy move.} 13. g3 {[%emt 0:01:03] B33: Sicilian: Pelikan and Sveshnikov Variations.} g6 {[%emt 0:00:28]} 14. Bg2 {[%emt 0:07:44]} Bg7 {[%emt 0:00:33]} 15. h4 {[%emt 0:04:33] The position is equal.} h5 {[%emt 0:02:33]} 16. O-O {[%emt 0:01:55]} O-O {[%emt 0:00:12]} 17. Qd3 {[%emt 0:09:49] [#]} Nb8 $146 {[%emt 0:14:40][%cal Bc6b8,Bb8a6,Ba6c5][%mdl 32]} ({Predecessor:} 17... Be6 18. b3 Qb8 19. Rfd1 Qa7 20. Qe3 Nd4 21. Nxd4 exd4 22. Qd3 Bxd5 23. exd5 a4 {0-1 (51) Bellahcene,B (2528)-Salem,A (2690) Dubai 2021}) 18. a3 {[%emt 0:05:23]} bxa3 {[%emt 0:04:24]} 19. Rxa3 {[%emt 0:04:12]} Na6 {[%emt 0:03:52]} 20. Qd2 {[%emt 0:11:42]} Rb8 {[%emt 0:07:39]} 21. Nce3 {[%emt 0:15:53]} Nc5 {[%emt 0:01:53]} 22. b4 {[%emt 0:05:08]} axb4 {[%emt 0:01:49]} 23. Nxb4 {[%emt 0:00:20] [#] Strongly threatening Nc6. Pair of Knights!} Bb7 {[%emt 0:01:52] Inhibits Nc6.} 24. Ned5 {[%emt 0:01:53]} Ne6 {[%emt 0:08:11]} 25. Nc2 {[%emt 0:09:51]} Nd4 {[%emt 0:03:49]} 26. Nxd4 {[%emt 0:04:02] Black must now prevent Nb5.} Bxd5 {[%emt 0:00:26]} 27. cxd5 {[%emt 0:04:05] [#] Threatens to win with Nc6.} exd4 {[%emt 0:00:07]} 28. Rc1 {[%emt 0:01:36]} Qb6 {[%emt 0:02:24]} 29. Rc6 {[%emt 0:04:21]} Qb1+ {[%emt 0:00:25]} 30. Kh2 $2 {[%emt 0:00:27]} (30. Rc1 $11 Qb7 31. Bf1) 30... Rb2 $19 {[%emt 0:00:35][%cal Bb8b2,Bb2f2,Bf2a2][%mdl 32]} 31. Qd3 {[%emt 0:06:01]} Qxd3 {[%emt 0:07:27]} 32. Rxd3 {[%emt 0:00:05]} Rxf2 {[%emt 0:00:08]} 33. Kg1 {[%emt 0:01:03]} Ra2 {[%emt 0:01:49] Hoping for ...Rb8.} 34. Rxd6 $2 {[%emt 0:00:59]} (34. Rb3 {keeps fighting.} Be5 35. Rcb6) 34... Rb8 {[%emt 0:00:47]} 35. Bf1 {[%emt 0:01:39]} (35. Bf3 $142 Be5 36. Rc6) 35... Bh6 {[%emt 0:00:37] ...Rb1 is the strong threat.} 36. Rf6 {[%emt 0:00:45]} Be3+ {[%emt 0:00:43]} 37. Kh1 {[%emt 0:00:24]} Rbb2 {[%emt 0:00:09][%csl Ga2][%cal Rb2h2]} 38. Rxe3 {[%emt 0:00:40]} dxe3 {[%emt 0:00:05]} 39. d6 {[%emt 0:00:29]} e2 {[%emt 0:00:06] Weighted Error Value: White=1.20/Black=0.03 (flawless)} (39... Kg7 $142 40. Kg1 Kxf6 41. d7 Ke7 42. e5 Kxd7 43. Bh3+ Kc6 44. e6 Ra1+ 45. Bf1 Rf2 46. exf7 Raxf1#) 0-1

[Event "44th Chess Olympiad Women 2022"]
[Site "Chennai"]
[Date "2022.07.30"]
[Round "2.10"]
[White "Assaubayeva, Bibisara"]
[Black "Vanduyfhuys, Daria"]
[Result "1-0"]
[ECO "D36"]
[WhiteElo "2436"]
[BlackElo "2094"]
[Annotator "TA"]
[PlyCount "67"]
[EventDate "2022.07.29"]
[EventType "team-tourn"]
[EventCountry "IND"]
[SourceTitle "playchess.com"]
[Source "ChessBase"]
[SourceQuality "1"]
[WhiteTeam "Kazakhstan"]
[BlackTeam "Belgium"]
[WhiteTeamCountry "KAZ"]
[BlackTeamCountry "BEL"]
[TimeControl "40/5400+30:1800+30"]

{[%evp 22,67,22,29,41,19,10,10,48,52,42,25,74,95,172,156,145,149,183,170,277,143,220,143,136,110,116,106,110,104,97,97,128,101,95,0,0,0,0,52,379,369,1479,1405,1423,262,1358,1372]} 1. d4 {[%emt 0:00:12]} d5 {[%emt 0:00:25]} 2. c4 {[%emt 0:00:08]} e6 {[%emt 0:00:07]} 3. Nc3 {[%emt 0:00:08]} Nf6 {[%emt 0:00:10]} 4. cxd5 {[%emt 0:00:24]} exd5 {[%emt 0:00:12]} 5. Bg5 {[%emt 0:00:08]} Be7 {[%emt 0:00:51]} 6. e3 {[%emt 0:00:21]} c6 {[%emt 0:01:38]} 7. Bd3 {[%emt 0:00:38]} O-O {[%emt 0:00:47]} 8. Qc2 {[%emt 0:01:44]} Nbd7 {[%emt 0:00:23]} 9. h3 {[%emt 0:01:49]} Re8 {[%emt 0:01:35]} 10. Nf3 {[%emt 0:01:25]} Nf8 {[%emt 0:04:25]} 11. O-O-O {[%emt 0:10:12]} Be6 {[%emt 0:11:28]} 12. Kb1 {[%emt 0:08:30]} Qa5 {[%emt 0:04:48] D36: Queen's Gambit Declined: Exchange Variation: Main line (5 Bg5 c6 6 Qc2).} 13. Nd2 {[%emt 0:03:16]} Rac8 {[%emt 0:17:19]} 14. g4 {[%emt 0:03:56][%cal Bg2g4,Bg4g5][%mdl 32]} b5 {[%emt 0:10:08] [#] The position is equal.} (14... Ne4 $5 15. Bxe7 Nxc3+ 16. Qxc3 Qxc3 17. bxc3 Rxe7 $11) 15. f4 $146 {[%emt 0:04:06]} ({Predecessor:} 15. Rc1 Qb6 16. Bxf6 Bxf6 17. Nb3 a5 18. Ne2 Be7 19. Nf4 a4 20. Nc5 Bxc5 21. dxc5 {½-½ (66) Iruzubieta Villaluenga,J (2410)-Mena Corrochano,A Oropesa del Mar 1996}) 15... Bd7 {[%emt 0:05:26]} 16. Rhe1 {[%emt 0:02:42]} Qb6 {[%emt 0:04:12]} (16... h6 $11 17. Bh4 Ne6) 17. Nf3 {[%emt 0:05:33]} a5 {[%emt 0:06:15]} (17... h6 $16 {was worth a try.}) 18. Bxf6 $18 {[%emt 0:10:39]} Bxf6 {[%emt 0:00:14]} 19. g5 $1 {[%emt 0:00:36]} Be7 {[%emt 0:01:31]} 20. Ne5 $1 {[%emt 0:02:14]} Rc7 {[%emt 0:01:59] [#]} (20... Rcd8 $142 21. h4 Bd6) 21. e4 {[%emt 0:05:06]} (21. Bxh7+ $1 $18 {[%mdl 512]} Nxh7 22. g6 fxg6 23. Qxg6 (23. Nxd7 $2 Rxd7 24. Qxg6 Qd8 $19) 23... Bf5+ 24. Qxf5) 21... dxe4 {[%emt 0:03:55]} (21... b4 $16 22. exd5 bxc3) 22. Nxe4 {[%emt 0:08:17][%cal Oe4f6]} Be6 {[%emt 0:04:46]} 23. Nc5 {[%emt 0:04:18] Pair of Knights!} Bd5 {[%emt 0:02:07]} 24. f5 {[%emt 0:01:12][%cal Bf4f5,Bf5f6][%mdl 32] 0x0.0013bb89dfdedp-1022s more active pieces.} Bxc5 {[%emt 0:05:52]} 25. dxc5 {[%emt 0:00:19]} Qb8 {[%emt 0:00:04] Strongly threatening ...Rce7.} 26. f6 $36 {[%emt 0:02:18][%mdl 2048] Inhibits Rce7. fxg7 is the strong threat. White is in control.} g6 {[%emt 0:01:18]} 27. Qf2 $1 {[%emt 0:08:25]} Rcc8 {[%emt 0:01:29]} 28. Qg3 {[%emt 0:03:43]} ({Better is} 28. Ng4 $16 Ne6 29. Re5 (29. Nh6+ Kf8 $11)) 28... Re6 $11 {[%emt 0:05:13]} (28... Nd7 $2 29. Qh4 $1 h5 30. Nxd7 $18) 29. Re3 {[%emt 0:00:09]} (29. Rd2 $11) 29... Rce8 $14 {[%emt 0:00:09][%cal Re6e5]} 30. Rde1 {[%emt 0:00:04]} h5 $2 {[%emt 0:03:30][%mdl 8192] [#] A mistake that costs the game.} (30... Nd7 31. Qh4 $1 Qd8 32. Nxd7 $1 $18 (32. Qh6 Nxf6 33. Rf1 Be4 $16)) (30... a4 $14) 31. gxh6 $1 $18 {[%emt 0:00:07][%cal Oh6h7] aiming for h7+!} Rxf6 $2 {[%emt 0:00:30] [#]} (31... Kh7 32. h4 Bc4) 32. Nd7 $1 {[%emt 0:00:20][%mdl 512]} Qxg3 {[%emt 0:00:14]} 33. Nxf6+ {[%emt 0:00:01]} Kh8 {[%emt 0:00:16]} 34. Rxe8 {[%emt 0:00:03] Weighted Error Value: White=0.18 (very precise) /Black=0.49} ({Worse is} 34. Rxg3 Rxe1+ 35. Kc2 Bxa2 $17) (34. Nxe8 Qg5 $11) 1-0

[Event "44th Chess Olympiad Women 2022"]
[Site "Chennai"]
[Date "2022.07.30"]
[Round "2.10"]
[White "Nurgali, Nazerke"]
[Black "Barbier, Wiebke"]
[Result "1-0"]
[ECO "D02"]
[WhiteElo "2181"]
[BlackElo "1970"]
[Annotator "TA"]
[PlyCount "37"]
[EventDate "2022.07.29"]
[EventType "team-tourn"]
[EventCountry "IND"]
[SourceTitle "playchess.com"]
[Source "ChessBase"]
[SourceQuality "1"]
[WhiteTeam "Kazakhstan"]
[BlackTeam "Belgium"]
[WhiteTeamCountry "KAZ"]
[BlackTeamCountry "BEL"]
[TimeControl "40/5400+30:1800+30"]

{[%evp 15,37,12,11,0,8,0,0,0,0,-6,0,0,37,27,285,104,29995,29996,29996,29997,29997,29998,29998,29999]} 1. d4 {[%emt 0:00:04]} d5 {[%emt 0:00:04]} 2. Nf3 {[%emt 0:00:22]} e6 {[%emt 0:00:05]} 3. Bf4 {[%emt 0:00:30]} Nf6 {[%emt 0:00:24]} 4. e3 {[%emt 0:00:17]} Be7 {[%emt 0:02:49]} 5. Bd3 {[%emt 0:01:32]} O-O {[%emt 0:00:26]} 6. O-O {[%emt 0:00:16]} c5 {[%emt 0:01:24]} 7. c3 {[%emt 0:00:29]} b6 {[%emt 0:02:59]} 8. Nbd2 {[%emt 0:00:47]} Bb7 {[%emt 0:00:34]} 9. Qe2 {[%emt 0:05:03] D02: 1 d4 d5 2 Nf3 sidelines, including 2...Nf6 3 g3 and 2...Nf6 3 Bf4.} Nbd7 {[%emt 0:02:24]} 10. a4 {[%emt 0:02:24] [#]} Nh5 $146 {[%emt 0:03:47]} ({Predecessor:} 10... Rc8 11. e4 dxe4 12. Nxe4 Nxe4 13. Bxe4 Bxe4 14. Qxe4 Nf6 15. Qb7 Nd5 16. Bg3 Bd6 17. dxc5 Bxg3 18. fxg3 Rxc5 19. Qxa7 {0-1 (28) Rotner,M-Fiori,B (2218) Playchess.com INT 2004}) 11. Ne5 {[%emt 0:05:12] The position is equal.} Nxf4 {[%emt 0:12:02]} 12. exf4 {[%emt 0:00:08]} cxd4 {[%emt 0:00:03]} 13. cxd4 {[%emt 0:00:14]} ({Don't blunder} 13. Qh5 $2 g6 14. Qh3 dxc3 15. bxc3 Rc8 $19) 13... Nb8 {[%emt 0:03:25]} 14. Rfc1 $40 {[%emt 0:03:42][%cal Od3h7][%mdl 128] Bxh7+! is the strong threat. White mounts an attack.} Qd6 $2 {[%emt 0:01:47][%mdl 8192] [#]} (14... Nd7 $11) 15. Rc3 $2 {[%emt 0:02:28]} ({Less strong is} 15. Qh5 f5 $16) (15. Bxh7+ $1 $18 {[%mdl 512] is the precise move to win.} Kxh7 16. Qh5+ Kg8 17. Ra3) 15... Nc6 $2 {[%emt 0:02:50][%mdl 8192] [#]} (15... h6 $16) 16. Bxh7+ $1 {[%emt 0:01:30][%mdl 512] White mates.} Kh8 {[%emt 0:03:24]} (16... Kxh7 17. Rh3+) 17. Qh5 {[%emt 0:00:34]} g6 {[%emt 0:00:40]} 18. Bxg6+ {[%emt 0:00:07]} Kg7 {[%emt 0:00:12]} 19. Qh7+ {[%emt 0:00:05] Black got outplayed after the opening.  Weighted Error Value: White=0.24 (precise) /Black=1.04} 1-0